bitfinex-derivatives/quotes_ETHF0:USTF0_20250926
["timestamp","ask_amount","ask_price","bid_price","bid_amount"]
[1758912846537,0.4416,4045.2,4045.1,0.97232]
[1758912846829,0.9651,4045.2,4045.1,0.44462]
[1758912847131,1.15572,4045.1,4045.0,0.44463]
[1758912847338,1.71476166,4045.1,4045.0,0.75583]
[1758912847730,1.15573,4045.0,4044.9,0.44464]
[1758912847930,0.4882,4044.8,4044.7,0.44466]
[1758912848129,1.52414166,4044.8,4044.7,0.75586]
[1758912848638,1.15577,4044.7,4044.6,0.31330697]
[1758912848846,1.71481166,4044.7,4044.6,0.00210697]
[1758912849739,1.27014166,4044.7,4044.6,0.00210697]
[1758912850135,1.27014166,4044.7,4044.6,0.75798697]
[1758912850845,0.77774166,4044.7,4044.6,1.19428697]
[1758912851035,3.2078,4045.0,4044.9,0.88094]
[1758912851344,3.4618,4045.0,4044.9,1.19214]
[1758912851848,3.9189,4045.6,4045.5,0.97228]
[1758912852050,5.18286652,4045.6,4045.5,0.6509]
[1758912852743,5.18286652,4045.6,4045.5,1.09548]
[1758912853051,5.18286652,4045.6,4045.5,0.6509]
[1758912853439,4.92886652,4045.6,4045.5,0.6509]
[1758912853641,5.18286652,4045.6,4045.5,0.6509]
[1758912853942,4.46879652,4045.6,4045.5,1.30088]
[1758912855542,4.91336652,4045.6,4045.5,1.30088]
[1758912856041,4.73839652,4045.6,4045.5,1.09548]
[1758912856448,4.73839652,4045.6,4045.5,0.44458]
[1758912857941,4.73839652,4045.6,4045.5,0.76208]
[1758912859059,4.73839652,4045.6,4045.5,0.76128]
[1758912859553,4.73839652,4045.6,4045.5,0.44458]
[1758912859943,0.44458,4045.5,4045.2,0.3175]
[1758912860144,0.707,4045.3,4045.2,0.44461]
[1758912860351,1.27239652,4045.3,4045.2,0.98481]
[1758912861553,1.27239652,4045.3,4045.2,0.76211]
[1758912861955,1.27239652,4045.3,4045.2,0.44461]
[1758912862251,1.71699652,4045.3,4045.2,0.44461]
[1758912862454,1.71699652,4045.3,4045.2,0.76211]
[1758912863453,1.71699652,4045.3,4045.2,0.44461]
[1758912863754,1.71699652,4045.3,4045.2,0.76211]
[1758912863957,1.71699652,4045.3,4045.2,0.44461]
[1758912865548,1.71699652,4045.3,4045.2,0.76211]
[1758912866148,1.71699652,4045.3,4045.2,0.98481]
[1758912866757,1.97099652,4045.3,4045.2,0.76211]
[1758912866962,1.70139652,4045.3,4045.2,0.98481]
[1758912867153,1.70139652,4045.3,4045.2,1.19021]
[1758912867454,1.25679652,4045.3,4045.2,1.19021]
[1758912867655,1.70139652,4045.3,4045.2,1.19021]
[1758912868555,1.97099652,4045.3,4045.2,0.98481]
[1758912869154,0.88201,4045.2,4045.1,0.44462]
[1758912869348,1.71700652,4045.2,4045.1,0.98482]
[1758912869548,1.44740652,4045.2,4045.1,0.98482]
[1758912869748,1.00279652,4045.2,4045.1,1.19022]
[1758912870655,1.71700652,4045.2,4045.1,0.3175]
[1758912870849,1.27239652,4045.2,4045.1,0.98482]
[1758912871454,1.00279652,4045.2,4045.1,0.98482]
[1758912871853,0.81939652,4045.2,4045.1,1.19022]
[1758912873249,1.03129652,4045.2,4045.1,1.19022]
[1758912873446,1.52639652,4045.2,4045.1,1.19022]
[1758912873650,1.52639652,4045.2,4045.1,0.98482]
[1758912873857,1.97100652,4045.2,4045.1,0.44462]
[1758912874057,1.52639652,4045.2,4045.1,0.44462]
[1758912874359,1.52639652,4045.2,4045.1,0.76212]
[1758912874559,1.52639652,4045.2,4045.1,0.98482]
[1758912875155,1.97100652,4045.2,4045.1,0.44462]
[1758912875658,1.52639652,4045.2,4045.1,0.76212]
[1758912875854,1.75432187,4046.0,4045.9,0.4281]
[1758912876058,9.9,4046.0,4045.9,1.19013]
[1758912876250,0.254,4046.6,4046.5,1.32117]
[1758912876859,0.4659,4046.6,4046.5,1.32117]
[1758912877055,1.0283,4046.6,4046.1,0.3175]
[1758912877351,1.0283,4046.6,4046.0,0.1311]
[1758912877352,0.7743,4046.2,4046.0,0.44452]
[1758912877555,0.4374,4046.2,4046.1,0.2227]
[1758912877754,0.4374,4046.2,4046.1,0.7456]
[1758912877959,1.0283,4046.2,4046.1,0.7456]
[1758912878348,1.0283,4046.2,4046.1,0.4281]
[1758912878657,0.7743,4046.2,4046.1,0.4281]
[1758912878859,1.0283,4046.2,4046.1,0.4281]
[1758912879746,0.6914,4046.2,4046.0,0.44452]
[1758912879950,0.7743,4046.1,4046.0,0.44452]
[1758912880663,0.3369,4045.9,4045.4,3.5253]
[1758912880849,0.7743,4045.5,4045.4,1.19019]
[1758912881556,0.2119,4045.5,4045.4,1.19019]
[1758912881854,0.7743,4045.8,4045.7,1.19016]
[1758912882054,1.0283,4045.8,4045.7,1.19016]
[1758912883164,3.2078,4046.3,4046.1,0.65921]
[1758912883460,3.431,4046.3,4046.2,0.4358]
[1758912883664,4.0067,4046.3,4046.2,0.7521]
[1758912883864,0.7706,4046.7,4046.6,0.2211]
[1758912884070,0.7706,4046.7,4046.6,1.19656]
[1758912884459,1.0246,4046.7,4046.6,1.19656]
[1758912884960,1.0246,4046.7,4046.6,0.2211]
[1758912885164,0.7706,4046.0,4045.9,3.9599]
[1758912885359,0.7706,4046.0,4045.9,1.19663]
[1758912885360,1.0246,4046.0,4045.9,1.19663]
[1758912887461,0.254,4046.0,4045.9,1.19663]
[1758912887675,0.254,4046.0,4045.9,6.19663]
[1758912888060,3.4618,4046.3,4046.2,1.1966]
[1758912888564,0.254,4046.3,4046.2,1.1966]
[1758912889572,0.7706,4046.3,4046.2,1.1966]
[1758912889866,1.0246,4046.3,4046.2,1.1966]
[1758912890561,0.7706,4046.3,4046.2,1.1966]
[1758912890761,1.0246,4046.3,4046.2,1.1966]
[1758912890962,0.7706,4046.3,4046.2,1.1966]
[1758912891370,1.0246,4046.3,4046.2,1.1966]
[1758912891972,1.95935111,4046.7,4046.6,1.19656]
[1758912892163,2.96831885,4046.7,4046.6,1.19656]
[1758912892363,2.96831885,4046.7,4046.6,0.88026]
[1758912892562,2.96831885,4046.7,4046.6,0.44446]
[1758912892764,2.96831885,4046.7,4046.6,0.66556]
[1758912893871,2.96831885,4046.7,4046.6,0.88026]
[1758912894065,2.96831885,4046.7,4046.6,1.19656]
[1758912894463,1.29986774,4046.7,4046.6,1.19656]
[1758912894775,1.32816774,4046.7,4046.6,1.19656]
[1758912895162,1.00646774,4046.7,4046.6,1.19656]
[1758912896171,2.96831885,4046.7,4046.6,0.44446]
[1758912896464,0.7706,4046.3,4046.2,0.9819]
[1758912896670,1.0246,4046.3,4046.2,1.1966]
[1758912897070,1.0246,4046.3,4046.2,0.8803]
[1758912897268,1.0246,4046.3,4046.2,1.1966]
[1758912901268,1.54138324,4046.3,4046.2,1.1966]
[1758912901463,1.54138324,4046.3,4046.2,0.4445]
[1758912901674,1.54138324,4046.3,4046.2,0.6656]
[1758912901971,9.74918324,4046.3,4046.2,0.4445]
[1758912902171,4.49518324,4046.3,4046.2,0.6656]
[1758912902372,4.20178324,4046.3,4046.2,1.1966]
[1758912903172,0.51678324,4046.3,4046.2,1.1966]
[1758912903373,3.68738902,4046.8,4046.7,1.19654]
[1758912903574,4.20438029,4046.8,4046.7,1.19654]
[1758912904271,3.98118029,4046.8,4046.7,1.19654]
[1758912904577,4.20438029,4046.8,4046.7,1.19654]
[1758912905080,3.98118029,4046.8,4046.7,1.19654]
[1758912905468,0.51938029,4046.8,4046.7,1.19654]
[1758912905868,0.51938029,4046.8,4046.7,6.19654]
[1758912906067,0.51938029,4046.8,4046.7,1.19654]
[1758912907076,1.28338029,4046.8,4046.7,1.19654]
[1758912907877,1.28338029,4046.8,4046.7,0.88024]
[1758912908177,0.85298029,4046.8,4046.7,1.19784]
[1758912908373,0.51938029,4046.8,4046.7,1.19784]
[1758912908571,1.26638029,4046.8,4046.7,1.19784]
[1758912909879,0.51938029,4046.8,4046.7,1.19784]
[1758912910970,1.26638029,4046.8,4046.7,1.19784]
[1758912911374,0.00238902,4046.8,4046.7,1.19784]
[1758912911879,0.00238902,4046.8,4046.7,2.61229111]
[1758912912075,0.00238902,4046.8,4046.7,2.86629111]
[1758912912672,0.00238902,4046.8,4046.7,3.21332999]
[1758912913881,0.00238902,4046.8,4046.7,8.21332999]
[1758912914381,0.72068902,4046.8,4046.7,1.45184]
[1758912915468,0.51628902,4046.8,4046.7,1.45184]
[1758912915675,0.00238902,4046.8,4046.7,1.19784]
[1758912916275,0.51608902,4046.8,4046.7,1.45184]
[1758912916676,0.20678902,4046.8,4046.7,1.45184]
[1758912917073,0.72068902,4046.8,4046.7,1.19784]
[1758912918178,0.72068902,4046.8,4046.7,0.67044]
[1758912918384,0.72068902,4046.8,4046.7,1.22544]
[1758912920682,0.20678902,4046.8,4046.7,1.22544]
[1758912920986,0.00238902,4046.8,4046.7,1.22544]
[1758912921482,0.00238902,4046.8,4046.7,1.47944]
[1758912922791,0.00238902,4046.8,4046.7,6.47944]
[1758912925184,0.72068902,4046.8,4046.7,0.67044]
[1758912925589,0.72068902,4046.8,4046.7,1.22544]
[1758912926489,0.72068902,4046.8,4046.7,0.67044]
[1758912926887,0.72068902,4046.8,4046.7,1.22544]
[1758912927400,0.00238902,4046.8,4046.7,2.98692999]
[1758912928384,38.539,4048.3,4046.7,2.98692999]
[1758912928385,0.3093,4047.7,4047.6,0.44435]
[1758912928590,1.03192898,4047.7,4047.6,1.22535]
[1758912929590,1.03409349,4047.7,4047.6,1.22800398]
[1758912929791,1.23869349,4047.7,4047.6,1.22800398]
[1758912930581,1.03409349,4047.7,4047.6,1.22800398]
[1758912930886,0.72479349,4047.7,4047.6,1.22800398]
[1758912931188,0.00216451,4047.7,4047.6,1.22800398]
[1758912931486,0.00216451,4047.7,4047.6,4.43580398]
[1758912931692,3.7215,4048.4,4048.3,1.22527]
[1758912931887,4.44411462,4048.4,4048.3,1.22527]
[1758912932789,4.44626982,4048.4,4048.3,1.22527]
[1758912933289,0.52016982,4048.4,4048.3,4.43307]
[1758912933485,0.5158552,4048.4,4048.3,1.22527]
[1758912933991,0.2065552,4048.4,4048.3,1.22527]
[1758912934393,0.2065552,4048.4,4048.3,1.47827]
[1758912935295,0.2065552,4048.4,4048.3,1.54590536]
[1758912935494,0.0021552,4048.4,4048.3,1.54590536]
[1758912935695,0.2065552,4048.4,4048.3,1.54590536]
[1758912935896,0.7204552,4048.4,4048.3,1.54590536]
[1758912936789,0.7204552,4048.4,4048.3,0.96330536]
[1758912936993,0.7204552,4048.4,4048.3,0.51190536]
[1758912937683,0.7204552,4048.4,4048.3,0.45617536]
[1758912937684,3.9282552,4048.4,4048.3,0.45617536]
[1758912937885,9.44538265,4048.4,4048.3,0.45617536]
[1758912939494,4.44538265,4048.4,4048.3,0.45617536]
[1758912942296,4.88964265,4048.4,4048.3,0.45617536]
[1758912942491,0.3266,4048.3,4048.2,0.44428]
[1758912942687,0.7604,4047.7,4047.6,0.44700398]
[1758912942995,1.53078361,4047.7,4047.6,0.44700398]
[1758912944001,6.53078361,4047.7,4047.6,0.44700398]
[1758912944201,6.97512361,4047.7,4047.6,0.44700398]
[1758912945001,1.20475,4047.6,4047.5,0.44436]
[1758912945201,1.72213361,4047.6,4047.5,0.44436]
[1758912945402,1.27778361,4047.6,4047.5,0.44436]
[1758912945903,1.27778361,4047.6,4047.5,0.44676512]
[1758912946604,1.72213361,4047.6,4047.5,0.44676512]
[1758912947113,1.72213361,4047.6,4047.5,0.00240512]
[1758912947402,3.4836236,4047.6,4047.5,0.00240512]
[1758912947993,3.4836236,4047.6,4047.5,0.44676512]
[1758912948402,3.4836236,4047.6,4047.5,0.00240512]
[1758912948602,3.4836236,4047.6,4047.5,0.44676512]
[1758912948901,1.27778361,4047.6,4047.5,0.44676512]
[1758912949104,1.72213361,4047.6,4047.5,0.44676512]
[1758912949297,1.97513361,4047.6,4047.5,0.44676512]
[1758912949797,1.53078361,4047.6,4047.5,0.44676512]
[1758912949990,1.27778361,4047.6,4047.5,1.18316512]
[1758912950205,0.98428361,4047.6,4047.5,1.31676512]
[1758912950594,1.53078361,4047.6,4047.5,1.18316512]
[1758912950891,1.53078361,4047.6,4047.5,0.44676512]
[1758912951504,1.53078361,4047.6,4047.5,0.65396512]
[1758912951998,1.53078361,4047.6,4047.5,1.18316512]
[1758912952903,3.4608,4047.8,4047.7,0.44434]
[1758912953098,3.98450917,4047.8,4047.7,1.18074]
[1758912953604,4.19840917,4047.8,4047.7,1.18074]
[1758912954495,4.52500917,4047.8,4047.7,1.18074]
[1758912955805,4.27200917,4047.8,4047.7,1.18074]
[1758912956001,4.74490917,4047.8,4047.7,1.18074]
[1758912956201,4.52500917,4047.8,4047.7,1.18074]
[1758912956511,4.19840917,4047.8,4047.7,1.18074]
[1758912956709,4.52500917,4047.8,4047.7,1.18074]
[1758912957111,4.74490917,4047.8,4047.7,1.18074]
[1758912957313,4.74490917,4047.8,4047.7,0.86924]
[1758912958403,4.74490917,4047.8,4047.7,0.44434]
[1758912962812,2.52188999,4047.6,4047.5,0.00240512]
[1758912963012,3.29859916,4047.6,4047.5,0.00240512]
[1758912963412,3.29859916,4047.6,4047.5,0.44676512]
[1758912963609,1.53710917,4047.6,4047.5,0.44676512]
[1758912967627,1.98145917,4047.6,4047.5,0.44676512]
[1758912967918,1.53710917,4047.6,4047.5,0.44676512]
[1758912968914,1.28410917,4047.6,4047.5,0.44676512]
[1758912969111,0.73760917,4047.6,4047.5,1.31336512]
[1758912969309,0.99060917,4047.6,4047.5,1.31336512]
[1758912969719,1.50890917,4047.6,4047.5,0.86836512]
[1758912970031,1.50890917,4047.6,4047.5,0.66276512]
[1758912970716,1.50890917,4047.6,4047.5,0.44676512]
[1758912971319,1.95325917,4047.6,4047.5,0.00240512]
[1758912972619,3.36696763,4047.6,4047.5,0.00240512]
[1758912973221,3.36696763,4047.6,4047.5,0.44676512]
[1758912973419,1.50890917,4047.6,4047.5,0.99256512]
[1758912973626,1.50890917,4047.6,4047.5,1.21246512]
[1758912973926,1.95325917,4047.6,4047.5,0.66066512]
[1758912974219,3.36696763,4047.6,4047.5,0.44676512]
[1758912975127,2.92261763,4047.6,4047.5,0.44676512]
[1758912975314,0.4341,4047.5,4047.4,0.2139]
[1758912975520,1.82546917,4047.5,4047.4,0.65826]
[1758912976024,1.38110917,4047.5,4047.4,0.65826]
[1758912976526,1.51000917,4047.5,4047.4,1.21202006]
[1758912976911,2.07846917,4047.5,4047.4,0.00196006]
[1758912977113,2.07846917,4047.5,4047.4,0.44633006]
[1758912979328,1.59518106,4047.5,4047.4,0.44633006]
[1758912979527,1.59518106,4047.5,4046.5,1.54730846]
[1758912979528,0.2138,4046.6,4046.5,0.1336]
[1758912979825,2.40000846,4046.6,4046.5,0.44447]
[1758912980524,2.40000846,4046.6,4046.5,0.4469352]
[1758912981227,0.2095,4046.6,4046.5,1.3411352]
[1758912981413,0.4625,4046.6,4046.5,1.3411352]
[1758912982316,3.2078,4046.8,4046.7,0.44445]
[1758912982627,0.44437,4047.4,4047.2,1.21009]
[1758912982628,0.4233,4047.3,4047.2,1.21009]
[1758912982823,0.6763,4047.3,4047.2,1.21009]
[1758912983023,0.9863,4047.3,4047.2,1.21009]
[1758912984432,1.43068,4047.3,4047.2,0.44439]
[1758912984625,0.9863,4047.3,4047.2,0.44439]
[1758912984927,1.43068,4047.3,4047.2,0.44439]
[1758912987130,0.563,4047.3,4046.8,0.3319]
[1758912987335,2.14700846,4046.9,4046.8,0.99023]
[1758912987532,2.40000846,4046.9,4046.8,0.65833]
[1758912987826,2.40000846,4046.9,4046.8,0.44443]
[1758912988625,2.40000846,4046.9,4046.8,1.21013]
[1758912988828,0.9863,4046.9,4046.8,1.21013]
[1758912991435,1.52805907,4046.9,4046.8,1.21013]
[1758912992138,1.52805907,4046.9,4046.8,0.65833]
[1758912992441,0.54175907,4046.9,4046.8,1.21013]
[1758912992638,0.79475907,4046.9,4046.8,1.21013]
[1758912993631,0.54175907,4046.9,4046.8,1.21013]
[1758912993841,0.54175907,4046.9,4046.8,9.41793]
[1758912994944,0.54175907,4046.9,4046.8,10.83163846]
[1758912998439,1.27505907,4046.9,4046.8,4.41793]
[1758912998938,1.27505907,4046.9,4046.8,1.21013]
[1758913003036,4.48285907,4046.9,4046.8,0.44443]
[1758913003238,4.48285907,4046.9,4046.8,0.97783]
[1758913004047,4.48285907,4046.9,4046.8,1.20193]
[1758913004546,4.42585907,4046.9,4046.8,1.20193]
[1758913005442,4.73165907,4046.9,4046.8,1.20193]
[1758913008748,0.7266,4046.6,4046.5,0.4469352]
[1758913008950,2.93506753,4046.6,4046.5,0.4469352]
[1758913009253,1.52135907,4046.6,4046.5,1.3360352]
[1758913011050,0.75895907,4046.6,4046.5,2.74974366]
[1758913011354,0.54175907,4046.6,4046.5,2.74974366]
[1758913012147,0.54175907,4046.6,4046.5,1.3360352]
[1758913012453,1.26835907,4046.6,4046.5,0.7578352]
[1758913012858,2.68206753,4046.6,4046.2,1.11126]
[1758913013052,0.7266,4046.3,4046.2,0.4445]
[1758913013355,1.26835907,4046.3,4046.2,0.9779]
[1758913013550,1.26835907,4046.3,4046.2,1.202]
[1758913013949,1.26835907,4046.3,4046.2,1.20444249]
[1758913014549,0.96255907,4046.3,4046.2,1.20444249]
[1758913015352,1.26835907,4046.3,4046.2,1.20444249]
[1758913015554,1.26835907,4046.3,4046.2,0.66944249]
[1758913015753,1.26835907,4046.3,4046.2,1.20444249]
[1758913020960,1.26835907,4046.3,4046.2,0.98034249]
[1758913021162,1.26835907,4046.3,4046.2,0.44694249]
[1758913021762,1.26835907,4046.3,4046.2,0.75784249]
[1758913022351,1.26835907,4046.3,4046.2,0.44694249]
[1758913022559,2.68206753,4046.3,4046.2,0.44694249]
[1758913024558,0.3058,4046.2,4045.8,1.11136]
[1758913024762,0.7266,4045.9,4045.8,0.66705]
[1758913024958,1.52135907,4045.9,4045.8,1.20205]
[1758913025355,1.21555907,4045.9,4045.8,1.20205]
[1758913025561,0.253,4045.9,4045.8,1.20381358]
[1758913025756,3.6507,4046.4,4046.3,1.17309]
[1758913026059,4.44912562,4046.4,4046.3,1.17309]
[1758913026260,6.19313408,4046.4,4046.3,1.17309]
[1758913028053,4.44912562,4046.4,4046.3,1.17309]
[1758913029364,4.77942562,4046.4,4046.3,1.17309]
[1758913031157,4.44912562,4046.4,4046.3,1.17309]
[1758913031463,4.77942562,4046.4,4046.3,0.76119]
[1758913031857,4.77942562,4046.4,4046.3,0.96499]
[1758913032563,4.77942562,4046.4,4046.3,1.18539]
[1758913034066,4.77942562,4046.4,4046.3,0.44449]
[1758913035365,4.44912562,4046.4,4046.0,1.11132]
[1758913035586,0.4299,4046.1,4046.0,0.5471]
[1758913035760,0.6829,4046.1,4046.0,0.5471]
[1758913035961,1.22732562,4046.1,4046.0,0.5471]
[1758913036170,1.55072562,4046.1,4046.0,0.5471]
[1758913036465,1.55072562,4046.1,4046.0,1.21202]
[1758913037971,1.55072562,4046.1,4046.0,0.99162]
[1758913038163,1.55072562,4046.1,4046.0,1.21202]
[1758913038664,1.55728238,4046.1,4046.0,1.21202]
[1758913039265,1.55728238,4046.1,4046.0,0.44452]
[1758913040370,1.55728238,4046.1,4046.0,0.99162]
[1758913040561,1.55728238,4046.1,4046.0,1.21202]
[1758913040768,1.55728238,4046.1,4046.0,1.33972]
[1758913041562,1.55728238,4046.1,4046.0,1.21202]
[1758913043469,1.55728238,4046.1,4046.0,0.99162]
[1758913045775,1.55728238,4046.1,4046.0,1.21202]
[1758913047876,1.55728238,4046.1,4045.9,1.11133]
[1758913047877,1.23388238,4046.1,4045.9,1.11133]
[1758913048077,1.0063,4046.1,4046.0,0.44452]
[1758913048274,1.54221981,4046.1,4046.0,0.44452]
[1758913054991,0.53591981,4046.1,4046.0,1.33972]
[1758913055181,0.78891981,4046.1,4046.0,1.33972]
[1758913055879,9.81e-06,4046.1,4046.0,1.33972]
[1758913056081,3.2078,4046.4,4046.3,1.21199]
[1758913056384,3.4608,4046.4,4046.3,1.21199]
[1758913057173,3.6845,4046.4,4046.3,1.21199]
[1758913058079,4.2141,4046.4,4046.3,1.21199]
[1758913058281,4.2141,4046.4,4046.3,0.44449]
[1758913059392,0.4299,4046.2,4046.1,0.5471]
[1758913059687,1.0063,4046.2,4046.1,0.5471]
[1758913060785,1.0063,4046.2,4046.1,0.99161]
[1758913060986,1.0063,4046.2,4046.1,1.21201]
[1758913061587,0.253,4046.2,4046.1,2.97447034]
[1758913061782,0.3234,4046.6,4046.5,1.01227]
[1758913061783,0.5471,4046.6,4046.5,1.01227]
[1758913061988,0.8001,4046.6,4046.5,1.33967]
[1758913062186,1.0063,4046.6,4046.5,1.21197]
[1758913062587,1.0063,4046.6,4046.5,0.44447]
[1758913065103,1.0063,4046.6,4046.5,0.67007]
[1758913065307,1.0063,4046.6,4046.5,0.98167]
[1758913065608,1.0063,4046.6,4046.5,0.44447]
[1758913066708,0.4305,4046.4,4046.3,0.5372]
[1758913066898,1.0097,4046.4,4046.3,0.67009]
[1758913067503,0.7567,4046.3,4046.2,0.44449]
[1758913067902,1.29276518,4046.3,4046.2,0.44449]
[1758913071901,0.1346,4046.0,4045.8,0.31336358]
[1758913072207,1.54576518,4045.9,4045.8,0.75791358]
[1758913072400,1.54576518,4045.9,4045.8,0.98351358]
[1758913072900,1.54576518,4045.9,4045.8,1.20221358]
[1758913075316,1.29276518,4045.9,4045.8,1.20221358]
[1758913075512,1.54576518,4045.9,4045.8,1.20221358]
[1758913080808,1.54576518,4045.9,4045.8,0.98351358]
[1758913083608,1.54576518,4045.9,4045.8,0.44631358]
[1758913086821,0.78906518,4045.9,4045.8,1.18231358]
[1758913088616,0.00700518,4045.9,4045.8,2.94477392]
[1758913088919,5.18e-06,4045.9,4045.8,2.94477392]
[1758913090515,3.4239,4046.5,4046.4,1.18048]
[1758913090822,3.7528,4046.5,4046.4,1.18048]
[1758913091025,4.0058,4046.5,4046.4,1.18048]
[1758913091522,4.2233,4046.5,4046.4,1.18048]
[1758913091717,3.9703,4046.5,4046.4,1.18048]
[1758913091925,3.9703,4046.5,4046.4,0.97098]
[1758913091926,4.3515,4046.5,4046.4,0.97098]
[1758913092116,4.3515,4046.5,4046.4,0.65818]
[1758913092316,4.3515,4046.5,4046.4,0.44448]
[1758913092624,0.7654,4046.2,4046.1,0.44451]
[1758913092828,1.0174,4046.2,4046.1,0.44451]
[1758913093125,1.0174,4046.2,4046.1,0.97021]
[1758913093423,0.4662,4046.2,4046.1,1.17771]
[1758913093625,3.5366,4046.5,4046.4,0.44448]
[1758913093821,0.4662,4046.5,4046.4,4.38548]
[1758913094317,0.2142,4046.5,4046.4,1.17768]
[1758913094522,0.4662,4046.5,4046.4,1.17768]
[1758913094717,0.2142,4046.5,4046.4,1.17768]
[1758913094917,0.4662,4046.5,4046.4,1.17768]
[1758913095122,0.2142,4046.5,4046.4,1.17768]
[1758913095319,0.543,4046.7,4046.6,0.86846]
[1758913095520,0.795,4046.7,4046.6,1.17766]
[1758913095721,1.0174,4046.7,4046.6,1.17766]
[1758913099134,1.0174,4046.7,4046.6,0.44446]
[1758913099617,1.0174,4046.7,4046.6,0.97016]
[1758913100218,1.0174,4046.7,4046.6,1.17766]
[1758913100525,0.6886,4046.7,4046.3,1.11121]
[1758913100725,3.9732,4046.5,4046.4,0.5257]
[1758913101024,4.50420682,4046.5,4046.4,0.97018]
[1758913102213,4.62830682,4046.5,4046.4,0.97018]
[1758913102725,4.88030682,4046.5,4046.4,0.97018]
[1758913103226,4.75620682,4046.5,4046.4,0.97018]
[1758913103525,4.75620682,4046.5,4046.4,1.17768]
[1758913105624,4.88030682,4046.5,4046.4,1.17768]
[1758913105925,4.88030682,4046.5,4046.4,0.97018]
[1758913106426,4.88030682,4046.5,4046.4,0.66098]
[1758913106619,4.88030682,4046.5,4046.4,0.44448]
[1758913107120,0.2142,4046.2,4046.1,0.44451]
[1758913107330,1.54840682,4046.2,4046.1,0.44451]
[1758913108822,1.55728318,4046.2,4046.1,0.97021]
[1758913109927,1.55728318,4046.2,4046.1,1.17771]
[1758913116327,0.8895,4046.0,4045.9,0.44453]
[1758913116527,6.30323512,4046.0,4045.9,0.44453]
[1758913117428,6.74776512,4046.0,4045.9,0.44453]
[1758913117629,6.30323512,4046.0,4045.9,0.44453]
[1758913118128,4.88918318,4046.0,4045.9,0.44453]
[1758913118631,4.88918318,4046.0,4045.9,0.97023]
[1758913119334,4.88918318,4046.0,4045.9,0.66103]
[1758913119539,6.30323512,4046.0,4045.9,0.66103]
[1758913120429,6.30323512,4046.0,4045.9,0.44453]
[1758913121430,6.30323512,4046.0,4045.6,1.11142]
[1758913121732,0.7654,4045.5,4045.4,1.17779]
[1758913121932,1.55728318,4045.5,4045.4,1.17779]
[1758913122534,1.23038023,4045.5,4045.4,1.18081821]
[1758913124532,1.00798023,4045.5,4045.4,2.59487015]
[1758913127443,0.79378023,4045.5,4045.4,2.59487015]
[1758913128144,1.56348023,4045.5,4045.4,2.59487015]
[1758913129644,1.56348023,4045.5,4045.4,1.18081821]
[1758913133145,1.22978023,4045.5,4045.4,1.18081821]
[1758913133748,1.56348023,4045.5,4045.4,1.18081821]
[1758913133954,1.22978023,4045.5,4045.4,1.18081821]
[1758913134951,1.56348023,4045.5,4045.4,1.18081821]
[1758913135745,10.97793217,4045.5,4045.1,1.11157]
[1758913135952,0.896,4045.0,4044.9,0.44465]
[1758913136159,4.89568318,4045.0,4044.9,1.18255]
[1758913136850,4.89568318,4045.0,4044.9,1.18561994]
[1758913137246,1.30958318,4045.0,4044.9,2.59967188]
[1758913137454,0.97588318,4045.0,4044.9,2.59967188]
[1758913138154,0.75378318,4045.0,4044.9,2.59967188]
[1758913138348,0.24539318,4045.0,4044.9,2.59967188]
[1758913138551,3.4598,4045.4,4045.3,1.1825]
[1758913139050,3.6737,4045.4,4045.3,1.1825]
[1758913141254,4.2295,4045.4,4045.3,1.1825]
[1758913141754,3.8958,4045.4,4045.3,1.1825]
[1758913142052,3.4217,4045.4,4045.3,1.1825]
[1758913142250,3.6737,4045.4,4045.3,1.1825]
[1758913142752,3.8958,4045.4,4045.3,1.1825]
[1758913142954,4.2295,4045.4,4045.3,1.1825]
[1758913143155,4.2295,4045.4,4045.3,0.9762]
[1758913143365,4.2295,4045.4,4045.3,0.4446]
[1758913143548,10.64355194,4045.4,4045.3,0.4446]
[1758913143749,10.64355194,4045.4,4044.9,0.00306994]
[1758913144050,0.8367,4045.0,4044.9,0.44771994]
[1758913144255,1.0887,4045.0,4044.9,0.44771994]
[1758913147155,1.0887,4045.0,4044.4,1.11175]
[1758913147156,1.0887,4045.0,4044.5,1.11173]
[1758913147455,0.761,4044.5,4044.4,0.7667]
[1758913147758,1.013,4044.5,4044.4,0.7667]
[1758913148455,1.013,4044.5,4044.4,0.9853699]
[1758913150057,1.013,4044.5,4044.4,1.2001699]
[1758913150458,1.26294012,4044.5,4044.4,1.2001699]
[1758913151356,1.04184012,4044.5,4044.4,1.2001699]
[1758913151746,0.81824012,4044.5,4044.4,1.2001699]
[1758913151952,0.56624012,4044.5,4044.4,1.2001699]
[1758913152859,0.05821012,4044.5,4044.4,1.2001699]
[1758913153058,0.252,4044.8,4044.7,1.21217]
[1758913156955,0.7586,4045.1,4045.0,1.01014]
[1758913157153,0.2217,4045.1,4045.0,1.34284]
[1758913157358,0.4737,4045.1,4045.0,1.34284]
[1758913157548,1.0096,4045.1,4045.0,0.44464]
[1758913158755,1.0096,4045.1,4045.0,0.77734]
[1758913159759,1.0096,4045.1,4045.0,1.00284]
[1758913160066,1.0096,4045.1,4045.0,1.34284]
[1758913160659,3.2078,4045.3,4045.2,0.44461]
[1758913160854,3.2078,4045.3,4045.2,1.21211]
[1758913161056,3.4598,4045.3,4045.2,1.21211]
[1758913161252,3.4295,4045.3,4045.2,1.21211]
[1758913161562,4.2174,4045.3,4045.2,1.21211]
[1758913162153,0.6943,4045.3,4045.2,1.21211]
[1758913164056,0.4737,4045.3,4045.2,1.21211]
[1758913164556,0.252,4045.3,4045.2,1.21211]
[1758913164753,0.22359705,4045.5,4045.4,0.67009]
[1758913164951,0.47559705,4045.5,4045.4,1.21209]
[1758913165264,1.03562878,4045.5,4045.4,1.21209]
[1758913167465,1.25622878,4045.5,4045.4,1.21209]
[1758913169066,1.57152878,4045.5,4045.4,1.21209]
[1758913171761,1.25622878,4045.5,4045.4,1.21209]
[1758913172871,1.57152878,4045.5,4045.4,1.21209]
[1758913174073,1.25622878,4045.5,4045.4,1.21209]
[1758913175473,1.57152878,4045.5,4045.4,1.21209]
[1758913175671,1.57152878,4045.5,4045.4,0.77729]
[1758913176068,1.57152878,4045.5,4045.4,1.00279]